{"text_format":"3","workbook":"xlsx","n_sheets":1,"sheets":["Despesas"],"not_rendered":{"defined_names":1},"read":"whole","date_system":"1900"}

{"sheet":"Despesas","index":0,"n_rows":30,"n_cols":6,"rows_kept":30,"merged":[[0,1,0,2],[1,1,1,2]]}
[null,"ORÇAMENTO DE DESPESAS",{"$nulls":3},{"$f":"NOW()","v":"2012-07-26T15:44:15.190"}]
[null,"Nome da Empresa"]
[]
[null,"Pessoal","Orçamento","Real","Diferença (€)","Diferença (%)"]
[null,"Escritório",null,null,{"$f":"SUM(Table1[Orçamento]-Table1[Real])","v":{"v":0,"d":"0.00 €"}},{"$f":"IFERROR(SUM(Table1[Diferença (€)]/Table1[Orçamento]),\"\")","v":""}]
[null,"Armazém",null,null,{"$f":"SUM(Table1[Orçamento]-Table1[Real])","v":{"v":0,"d":"0.00 €"}},{"$f":"IFERROR(SUM(Table1[Diferença (€)]/Table1[Orçamento]),\"\")","v":""}]
[null,"Vendedores",null,null,{"$f":"SUM(Table1[Orçamento]-Table1[Real])","v":{"v":0,"d":"0.00 €"}},{"$f":"IFERROR(SUM(Table1[Diferença (€)]/Table1[Orçamento]),\"\")","v":""}]
[null,"Outros",null,null,{"$f":"SUM(Table1[Orçamento]-Table1[Real])","v":{"v":0,"d":"0.00 €"}},{"$f":"IFERROR(SUM(Table1[Diferença (€)]/Table1[Orçamento]),\"\")","v":""}]
[]
[null,"Administração","Orçamento","Real","Diferença (€)","Diferença (%)"]
[null,"Publicidade",null,null,{"$f":"SUM(Table2[Orçamento]-Table2[Real])","v":{"v":0,"d":"0.00 €"}},{"$f":"IFERROR(SUM(Table2[Diferença (€)]/Table2[Orçamento]),\"\")","v":""}]
[null,"Dívidas",null,null,{"$f":"SUM(Table2[Orçamento]-Table2[Real])","v":{"v":0,"d":"0.00 €"}},{"$f":"IFERROR(SUM(Table2[Diferença (€)]/Table2[Orçamento]),\"\")","v":""}]
[null,"Benefícios",null,null,{"$f":"SUM(Table2[Orçamento]-Table2[Real])","v":{"v":0,"d":"0.00 €"}},{"$f":"IFERROR(SUM(Table2[Diferença (€)]/Table2[Orçamento]),\"\")","v":""}]
[null,"Consumíveis",null,null,{"$f":"SUM(Table2[Orçamento]-Table2[Real])","v":{"v":0,"d":"0.00 €"}},{"$f":"IFERROR(SUM(Table2[Diferença (€)]/Table2[Orçamento]),\"\")","v":""}]
[null,"Portes",null,null,{"$f":"SUM(Table2[Orçamento]-Table2[Real])","v":{"v":0,"d":"0.00 €"}},{"$f":"IFERROR(SUM(Table2[Diferença (€)]/Table2[Orçamento]),\"\")","v":""}]
[null,"Renda ou hipoteca",null,null,{"$f":"SUM(Table2[Orçamento]-Table2[Real])","v":{"v":0,"d":"0.00 €"}},{"$f":"IFERROR(SUM(Table2[Diferença (€)]/Table2[Orçamento]),\"\")","v":""}]
[null,"Despesas de vendas",null,null,{"$f":"SUM(Table2[Orçamento]-Table2[Real])","v":{"v":0,"d":"0.00 €"}},{"$f":"IFERROR(SUM(Table2[Diferença (€)]/Table2[Orçamento]),\"\")","v":""}]
[null,"Impostos",null,null,{"$f":"SUM(Table2[Orçamento]-Table2[Real])","v":{"v":0,"d":"0.00 €"}},{"$f":"IFERROR(SUM(Table2[Diferença (€)]/Table2[Orçamento]),\"\")","v":""}]
[null,"Utilitários",null,null,{"$f":"SUM(Table2[Orçamento]-Table2[Real])","v":{"v":0,"d":"0.00 €"}},{"$f":"IFERROR(SUM(Table2[Diferença (€)]/Table2[Orçamento]),\"\")","v":""}]
[null,"Outros",null,null,{"$f":"SUM(Table2[Orçamento]-Table2[Real])","v":{"v":0,"d":"0.00 €"}},{"$f":"IFERROR(SUM(Table2[Diferença (€)]/Table2[Orçamento]),\"\")","v":""}]
[null,"Seguro",null,null,{"$f":"SUM(Table2[Orçamento]-Table2[Real])","v":{"v":0,"d":"0.00 €"}},{"$f":"IFERROR(SUM(Table2[Diferença (€)]/Table2[Orçamento]),\"\")","v":""}]
[null,"Juros",null,null,{"$f":"SUM(Table2[Orçamento]-Table2[Real])","v":{"v":0,"d":"0.00 €"}},{"$f":"IFERROR(SUM(Table2[Diferença (€)]/Table2[Orçamento]),\"\")","v":""}]
[null,"Telefone",null,null,{"$f":"SUM(Table2[Orçamento]-Table2[Real])","v":{"v":0,"d":"0.00 €"}},{"$f":"IFERROR(SUM(Table2[Diferença (€)]/Table2[Orçamento]),\"\")","v":""}]
[null,"Manutenção e reparações",null,null,{"$f":"SUM(Table2[Orçamento]-Table2[Real])","v":{"v":0,"d":"0.00 €"}},{"$f":"IFERROR(SUM(Table2[Diferença (€)]/Table2[Orçamento]),\"\")","v":""}]
[null,"Taxas legais",null,null,{"$f":"SUM(Table2[Orçamento]-Table2[Real])","v":{"v":0,"d":"0.00 €"}},{"$f":"IFERROR(SUM(Table2[Diferença (€)]/Table2[Orçamento]),\"\")","v":""}]
[null,"Depreciação",null,null,{"$f":"SUM(Table2[Orçamento]-Table2[Real])","v":{"v":0,"d":"0.00 €"}},{"$f":"IFERROR(SUM(Table2[Diferença (€)]/Table2[Orçamento]),\"\")","v":""}]
[null,"Expedição",null,null,{"$f":"SUM(Table2[Orçamento]-Table2[Real])","v":{"v":0,"d":"0.00 €"}},{"$f":"IFERROR(SUM(Table2[Diferença (€)]/Table2[Orçamento]),\"\")","v":""}]
[null,"Armazenamento",null,null,{"$f":"SUM(Table2[Orçamento]-Table2[Real])","v":{"v":0,"d":"0.00 €"}},{"$f":"IFERROR(SUM(Table2[Diferença (€)]/Table2[Orçamento]),\"\")","v":""}]
[null,"Outros",null,null,{"$f":"SUM(Table2[Orçamento]-Table2[Real])","v":{"v":0,"d":"0.00 €"}},{"$f":"IFERROR(SUM(Table2[Diferença (€)]/Table2[Orçamento]),\"\")","v":""}]
[null,"Total de Despesas",{"$f":"SUM(Table1[Orçamento],Table2[Orçamento])","v":{"v":0,"d":"0.00 €"}},{"$f":"SUM(Table1[Real],Table2[Real])","v":{"v":0,"d":"0.00 €"}},{"$f":"SUM(Table1[Diferença (€)],Table2[Diferença (€)])","v":{"v":0,"d":"0.00 €"}},{"$f":"IFERROR(SUM(Table2[[#Totals],[Diferença (€)]]/Table2[[#Totals],[Orçamento]]),\"\")","v":""}]